Cogmind - Beta 11 @@@ ROGUE MODE // 2022.03.31 @ 13:10:53 Player: albenzo Result: Destroyed by as-63948 with Assembled Blade Performance ------------- Evolutions (1) 500 Regions Visited (4) 800 Robots Destroyed (28) 140 Value Destroyed (598) 598 Prototype IDs (7) 140 Alien Tech Used (0) 0 Bonus (-113) -113 TOTAL SCORE: 2065 Bonus ------- High Alert Combat Kills 6 Friendly Fire -119 Cogmind --------- Core Integrity 0/400 Matter 250/300 Energy 93/100 System Corruption 2% Temperature Warm (183) Movement Core (50) Location -9/Mines Parts ------- > --- POWER (1) -------- (None) > --- PROPULSION (3) --- (None) > --- UTILITY (3) ------ (None) > --- WEAPON (2) ------- Pulse Rifle > --- INVENTORY (5) ---- Light Angular Momentum Engine VSS Leg Seismic Detector Pulse Rifle Katana Peak State ------------ > --- POWER ------------ Heavy Ion Engine > --- PROPULSION ------- Carbon-fiber Leg Carbon-fiber Leg VSS Leg > --- UTILITY ---------- Improved Heat Sink Medium Storage Unit Improved Targeting Computer > --- WEAPON ----------- Pulse Rifle Beamcaster > --- INVENTORY -------- Improved Ion Engine Light Angular Momentum Engine VSS Leg VSS Leg Seismic Detector Hardened Light Armor Plating Pulse Rifle Pulse Rifle Grenade Launcher Katana [Rating: 28] Favorites ----------- Power Light Ion Engine Engine Light Ion Engine Propulsion VSS Leg Leg VSS Leg Utility Small Storage Unit Device Seismic Detector Storage Small Storage Unit Processor Improved Targeting Computer Weapon Pulse Rifle Energy Gun Pulse Rifle Energy Cannon Advanced Beam Cannon Ballistic Gun Light Assault Rifle Launcher Grenade Launcher Build | -11 -10 -10 -9 -9 ------- Run | Scr Mat Min Mat Min Slots Evolved 2 | . . . 2 . Power . | . . . . . Propulsion 1 | . . . 1 . Utility 1 | . . . 1 . Weapon . | . . . . . Parts Attached 40 | 6 3 8 20 3 Power 7 | 1 1 3 2 . Engine 7 | 1 1 3 2 . Core . | . . . . . Reactor . | . . . . . Propulsion 10 | 2 . 1 7 . Treads . | . . . . . Leg 10 | 2 . 1 7 . Wheel . | . . . . . Hover . | . . . . . Flight . | . . . . . Utility 8 | 1 1 . 6 . Device 4 | . 1 . 3 . Storage 3 | 1 . . 2 . Processor 1 | . . . 1 . Hackware . | . . . . . Protection . | . . . . . Artifact . | . . . . . Weapon 15 | 2 1 4 5 3 Energy Gun 5 | 1 . . 3 1 Energy Cannon 2 | . . . 2 . Ballistic Gun 5 | 1 1 3 . . Ballistic Cannon . | . . . . . Launcher 3 | . . 1 . 2 Special Weapon . | . . . . . Impact Weapon . | . . . . . Slashing Weapon . | . . . . . Piercing Weapon . | . . . . . Special Melee Weapon . | . . . . . Unidentified Prototypes 1 | . . . 1 . Parts Lost 7 | . . 1 . 6 Power 1 | . . 1 . . Propulsion 2 | . . . . 2 Utility 2 | . . . . 2 Weapon 2 | . . . . 2 Highest Loss Streak 6 | . . 1 . 6 To Critical Strikes . | . . . . . Average Slot Usage (%) 96 | . 85 99 99 55 Engine 12 | . 14 13 11 11 Leg 30 | . 28 28 33 14 Device 10 | . . 14 11 3 Storage 12 | . 14 14 11 11 Processor 6 | . . . 10 3 Energy Gun 12 | . 7 . 19 11 Ballistic Gun 10 | . 20 28 1 . Naked Turns . | . . . . . Heaviest Build 27 | 11 11 13 27 27 Greatest Support 42 | 20 20 22 42 42 Greatest Overweight (x) 1 | . . . . 1 Average Overweight (x) . | . . . . . Largest Inventory Capacity 10 | 8 8 8 10 10 Average Capacity 8 | 7 8 8 9 9 Most Carried 10 | 7 8 8 10 10 Average Carried 8 | 4 7 7 9 9 Final Capacity 10 | 8 8 8 10 5 Final Carried 10 | 6 8 8 10 5 Class Distribution -------------------- 87% | Mutant 12% | Scavenger-Mutant Dominant Class ---------------- Mutant | -10/Materials Mutant | -10/Mines Mutant | -9/Materials Mutant | -9/Mines Resources | -11 -10 -10 -9 -9 ----------- Run | Scr Mat Min Mat Min Matter Collected 614 | 260 33 101 220 . Remotely . | . . . . . Salvage Created 833 | . 43 71 645 74 Parts 58 | . 5 8 45 . Haulers Intercepted . | . . . . . Recyclers Shooed 2 | . 1 1 . . Parts Field Recycled . | . . . . . Retrieved Matter . | . . . . . Parts Self-Destructed . | . . . . . Prevented . | . . . . . Kills | -11 -10 -10 -9 -9 ------- Run | Scr Mat Min Mat Min Combat Hostiles Destroyed 37 | . 3 6 17 11 Guns 26 | . 3 4 17 2 AOE 11 | . . 2 . 9 Classes Destroyed 5 | . 1 . 3 1 Recycler 1 | . . . 1 . Swarmer 14 | . 3 6 5 . Grunt 8 | . . . 8 . Sentry 4 | . . . 4 . Assembled 11 | . . . . 11 Thug 1 | . . . 1 . Best Kill Streak 11 | . 2 3 4 11 Combat Bots Only 11 | . 2 3 4 11 Max Kills in Single Turn 5 | . 1 2 2 5 Gunslinging 1 | . . . 1 . Exploded 5 | . . 2 . 5 Melee . | . . . . . Uniques/NPCs Destroyed . | . . . . . Combat | -11 -10 -10 -9 -9 -------- Run | Scr Mat Min Mat Min Damage Taken 1451 | . 65 219 439 728 Core 468 | . 6 52 170 240 Absorbed by Shields . | . . . . . Core Remaining (%) 88 | 100 . 76 . . Volleys Fired 65 | . 8 14 36 7 Largest 2 | . 2 2 2 2 Hottest 138 | . 70 50 138 105 Shots Fired 125 | . 16 27 71 11 Gun 119 | . 16 26 71 6 Cannon . | . . . . . Launcher 6 | . . 1 . 5 Special . | . . . . . Kinetic 39 | . 13 26 . . Thermal 80 | . 3 . 71 6 Explosive 6 | . . 1 . 5 Electromagnetic . | . . . . . Robot Hit Streak 10 | . 4 5 10 10 Robot Miss Streak 3 | . 2 3 2 . Penetration Max . | . . . . . Secondary Targets 1 | . . . 1 . Max Gunslinging Chain 1 | . . . 1 . Shots Hit Robots 72 | . 8 13 47 4 Core Hits 63 | . 4 6 25 28 Critical Kills . | . . . . . Critical Parts Destroyed . | . . . . . Critical Strikes 4 | . 1 . 3 . Burn 4 | . 1 . 3 . Melee Attacks . | . . . . . Impact . | . . . . . Slashing . | . . . . . Piercing . | . . . . . Sneak Attacks . | . . . . . Combat Hostiles . | . . . . . Follow-up Attacks . | . . . . . Damage Inflicted 1752 | . 67 214 857 614 Guns 1082 | . 67 98 857 60 Cannons . | . . . . . Explosions 670 | . . 116 . 554 Melee . | . . . . . Ramming . | . . . . . Kinetic 152 | . 54 98 . . Thermal 930 | . 13 . 857 60 Explosive 670 | . . 116 . 554 Electromagnetic . | . . . . . Impact . | . . . . . Slashing . | . . . . . Piercing . | . . . . . Highest Corruption 2 | . . . . 2 Average Corruption 2 | . . . . 2 Corruption Purged . | . . . . . Corruption Blocked . | . . . . . Effects 1 | . . . . 1 Message Errors 1 | . . . . 1 Overload Shots . | . . . . . Overflow Damage 19 | . . . . 19 Projectiles . | . . . . . Explosions 19 | . . . . 19 Melee . | . . . . . Knockbacks . | . . . . . Impact . | . . . . . Kinetic . | . . . . . Secondary . | . . . . . Self-Inflicted Damage 110 | . . 39 . 71 Shots 3 | . . 1 . 2 Rammed . | . . . . . Targets Rammed . | . . . . . Kicked . | . . . . . Crushed . | . . . . . Highest Temperature 219 | . 50 10 217 219 Average Temperature 75 | . 26 7 75 103 Received Heat Transfer 344 | . . . 144 200 Effects 2 | . . . 1 1 Energy Bleed 1 | . . . 1 . Interference 1 | . . . . 1 Siege Activations . | . . . . . Robots Corrupted . | . . . . . Combat Hostiles . | . . . . . Parts Fried . | . . . . . Impact Corruptions . | . . . . . Robots Melted . | . . . . . Combat Hostiles . | . . . . . Parts Melted 6 | . . . 6 . Heat Transferred 2257 | . 111 . 2035 111 Parts Sabotaged . | . . . . . Parts Stolen . | . . . . . Parts Stripped . | . . . . . Power Chain Reactions . | . . . . . Missiles Intercepted . | . . . . . Alert | -11 -10 -10 -9 -9 ------- Run | Scr Mat Min Mat Min Peak Influence 468 | . 126 199 468 211 Initial 182 | . . 48 77 182 Average 171 | . 56 129 227 197 Maximum Alert Level 2 | . . . 2 1 Low Security (%) 64 | 100 100 100 40 33 Level 1 31 | . . . 53 66 Level 2 3 | . . . 6 . Level 3 . | . . . . . Level 4 . | . . . . . Level 5 . | . . . . . High Security . | . . . . . Max Security . | . . . . . Squads Dispatched 4 | . 1 . 3 . Investigation 1 | . . . 1 . Extermination . | . . . . . Reinforcement 3 | . 1 . 2 . Assault . | . . . . . Garrison . | . . . . . Intercept . | . . . . . Searches Triggered . | . . . . . Construction Impeded . | . . . . . Haulers Reinforced . | . . . . . Active Scanning Responses . | . . . . . Cargo Convoy Interrupts . | . . . . . Stealth | -11 -10 -10 -9 -9 --------- Run | Scr Mat Min Mat Min Distress Signals 3 | . 1 . 2 . Communications Jammed . | . . . . . Distress Signals . | . . . . . Times Spotted 61 | . 7 6 31 17 Peak Tracking Total 18 | . 3 3 5 18 Tactical Retreats 3 | . 1 . 1 1 Traps | -11 -10 -10 -9 -9 ------- Run | Scr Mat Min Mat Min Traps Triggered 1 | . . 1 . . Indirectly . | . . . . . Trap Hack Attempts . | . . . . . Triggered . | . . . . . Disarmed . | . . . . . Reprogrammed . | . . . . . Reused . | . . . . . Traps Extracted . | . . . . . Installed . | . . . . . Triggered . | . . . . . Machines | -11 -10 -10 -9 -9 ---------- Run | Scr Mat Min Mat Min Machines Disabled . | . . . . . Max in Single Turn . | . . . . . Machines Sabotaged . | . . . . . Garrisons Compromised . | . . . . . Overloaded Fab Kills . | . . . . . Hacking | -11 -10 -10 -9 -9 --------- Run | Scr Mat Min Mat Min Machines Accessed 6 | . 2 1 3 . Terminals 5 | . 2 . 3 . Fabricators . | . . . . . Repair Stations . | . . . . . Recycling Units . | . . . . . Scanalyzers . | . . . . . Garrison Access . | . . . . . Total Hacks 16 | . 7 1 8 . Successful 7 | . 3 1 3 . Failed 9 | . 4 . 5 . Catastrophic 3 | . 1 . 2 . Database Lockouts . | . . . . . Manual 6 | . 3 . 3 . Terminals 15 | . 7 . 8 . Fabricators . | . . . . . Repair Stations . | . . . . . Recycling Units . | . . . . . Scanalyzers . | . . . . . Garrison Access . | . . . . . Terminal Hacks 7 | . 3 1 3 . Prototype ID Bank 3 | . 2 . 1 . Open Door 1 | . . 1 . . Branch Access Points 1 | . . . 1 . Alert Level 1 | . . . 1 . Locate Traps 1 | . 1 . . . Fabricator Hacks . | . . . . . Repair Station Hacks . | . . . . . Recycling Unit Hacks . | . . . . . Scanalyzer . | . . . . . Garrison Access Hacks . | . . . . . Unauthorized Hacks . | . . . . . Terminals . | . . . . . Fabricators . | . . . . . Repair Stations . | . . . . . Recycling Units . | . . . . . Scanalyzers . | . . . . . Garrison Access . | . . . . . Data Cores Recovered . | . . . . . Used . | . . . . . Hacking Detections 5 | . 2 . 3 . Full Trace Events 1 | . . . 1 . Feedback Events . | . . . . . Feedback Blocked . | . . . . . Robot Schematics Acquired . | . . . . . Robots Built . | . . . . . Authchips . | . . . . . Time . | . . . . . Total Robot Build Rating . | . . . . . Part Schematics Acquired . | . . . . . Parts Built . | . . . . . Authchips . | . . . . . Time . | . . . . . Total Part Build Rating . | . . . . . Parts Repaired . | . . . . . Time . | . . . . . Parts Recycled . | . . . . . Recycled Matter . | . . . . . Retrieved Matter . | . . . . . Retrieved Components . | . . . . . Parts Scanalyzed . | . . . . . Part Schematics Acquired . | . . . . . Parts Damaged . | . . . . . Bothacking | -11 -10 -10 -9 -9 ------------ Run | Scr Mat Min Mat Min Used RIF Installer . | . . . . . Robots Hacked . | . . . . . Non-combat . | . . . . . Combat . | . . . . . Robot Hacks Applied . | . . . . . Relay Couplers Released . | . . . . . Fabnet Peak Effective % . | . . . . . Robots Rewired . | . . . . . Allies Hacked . | . . . . . Hacks Repelled . | . . . . . Allies | -11 -10 -10 -9 -9 -------- Run | Scr Mat Min Mat Min Total Allies . | . . . . . Largest Group . | . . . . . Highest-Rated Group . | . . . . . Highest-Rated Ally . | . . . . . Total Orders . | . . . . . Ally Attacks . | . . . . . Total Damage . | . . . . . Kills . | . . . . . Allies Corrupted . | . . . . . Allies Melted . | . . . . . Intel | -11 -10 -10 -9 -9 ------- Run | Scr Mat Min Mat Min Robot Analysis Total . | . . . . . Derelict Logs Recovered 1 | . . 1 . . Drone Launches . | . . . . . Drone Recoveries . | . . . . . Exploration | -11 -10 -10 -9 -9 ------------- Run | Scr Mat Min Mat Min Turns Passed 1336 | 68 165 309 761 33 Spaces Moved 910 | 49 111 206 535 9 Core 10 | 8 . . . 2 Treads . | . . . . . Legs 900 | 41 111 206 535 7 Wheels . | . . . . . Hover . | . . . . . Flight . | . . . . . Fastest Speed 50 | 50 120 105 90 50 Average Speed 105 | 108 120 118 97 105 Slowest Speed 190 | 120 120 120 110 190 Overloaded Moves . | . . . . . Propulsion Burnouts . | . . . . . Robots Hopped . | . . . . . Cave-ins Triggered . | . . . . . Exploration Rate (%) 26 | 5 24 44 51 10 Regions Visited 4 Branch Regions 2 Pre-discovered Areas . | . . . . . Known Exits Taken 1 | . . . 1 . Unknown Exits Taken 3 | 1 1 1 . . Scrap Searched 1 | . . 1 . . Spaces Dug . | . . . . . Terrain Destroyed 35 | . . 7 . 28 Melee . | . . . . . Projectile . | . . . . . AOE 35 | . . 7 . 28 Terrain Rammed . | . . . . . Walls Destroyed . | . . . . . Machines Disabled . | . . . . . Actions | -11 -10 -10 -9 -9 --------- Run | Scr Mat Min Mat Min Total 1177 | 61 130 250 715 21 Wait 99 | . 4 12 83 . Move 906 | 48 110 205 534 9 Hop . | . . . . . Pick Up 26 | 7 2 3 14 . Fast Attach 14 | 5 2 1 5 1 Attach 3 | 1 . . 1 1 Detach 2 | . 1 . . 1 Swap 23 | . 1 7 14 1 Drop 39 | . 2 8 28 1 Fire 65 | . 8 14 36 7 Melee . | . . . . . Ram . | . . . . . Kick . | . . . . . Crush . | . . . . . Escape Stasis . | . . . . . Rewire . | . . . . . Trap . | . . . . . Miscellaneous . | . . . . . Route ------- -11/Scrapyard -10/Materials -10/Mines -9/Materials (discovered 2 exits: [*Mat] / *Min) -9/Mines History --------- Turn | Location | Event 6 | -11/Scrapyard | Discovered new exit (range 13) 69 | -11/Scrapyard | Entered Materials 224 | -10/Materials | Discovered new exit (range 9) 234 | -10/Materials | Entered Mines 298 | -10/Mines | Met a Derelict bent on vengeance 300 | -10/Mines | Build established: Mutant 442 | -10/Mines | Learned Materials stockpile data 491 | -10/Mines | Discovered new exit (range 9) 501 | -10/Mines | Met a Derelict who couldn't figure out how to use a Trap Extractor 543 | -10/Mines | Entered Materials 543 | -9/Materials | Evolved 2 slots: Propulsion x1, Utility x1 1041 | -9/Materials | Identified exit to Mines 1111 | -9/Materials | Discovered new exit (range 16) 1304 | -9/Materials | Entered Mines 1305 | -9/Mines | Assembled infested the area 1315 | -9/Mines | Received a Rocket Launcher from a helpful Derelict 1316 | -9/Mines | Core integrity fell below 50% 1331 | -9/Mines | Core integrity fell below 20% 1337 | -9/Mines | Destroyed by as-63948 with Assembled Blade Last Messages --------------- 01317_ Carbon-fiber Leg destroyed. 01319_ as-30578 destroyed. 01319_ as-24544 destroyed. 01319_ as-15914 destroyed. 01319_ as-17979 destroyed. 01319_ Grenade Launcher severed. 01320_ ,5,OP|2 YE/H<>5PY42 UHB/J#OPPBQ= 01320_ as-70237 destroyed. 01323_ Acquired Grenade Launcher. 01325_ Carbon-fiber Leg destroyed. 01325_ as-47097 destroyed. 01327_ Critical hit (Burn: +80). 01328_ Beamcaster destroyed. 01328_ as-21993 destroyed. 01328_ Grenade Launcher destroyed. 01328_ Destroyed Grenade Launcher. 01328_ as-18042 destroyed. 01335_ Overheating: System interference. 01335_ Pulse Rifle temporarily disabled. 01336_ Dropped Med. Storage Unit. Map ----- +----------------------------------------------------+ | | | | | | | | | | | | | | | | | | | | | | | | | | | | | | | | | | | ????????????????????????????????????????? | | ????????????????????????????????????????? | | ????????????????????????????????????????? | | ??????????####??????????????????????????? | | ?????????## ##?????????????????????????? | | ?????????# ##??#?????????????????????? | | ?????????# #? ##?????? ??????????? | | ?????????# ## ### #?????????? | | ?????????# =!@ #?????????? | | ?????????# a[!a% ] #?????????? | | ?????????## %**% a #?????????? | | ??????????# a ?????????? | | ??????????# %% # ### ?????????? | | ????????? #### % ###? ##?????????????? | | ???????? ## #??# % #???##??????????????? | | ???????#??# #??# ??????????????????? | | ??????????# ?? ?????????????????? | | ???????????##??## ????????????????? | | ?????????????????# ???????????????? | | ?????????????????? # ??????????????? | | ??????????????????#### ??????????????? | | ??????????????????????###???????????????? | | ????????????????????????????????????????? | | ????????????????????????????????????????? | | ????????????????????????????????????????? | | ????????????????????????????????????????? | | ????????????????????????????????????????? | | ????????????????????????????????????????? | | ????????????????????????????????????????? | | ????????????????????????????????????????? | | ????????????????????????????????????????? | | ????????????????????????????????????????? | | ????????????????????????????????????????? | +----------------------------------------------------+ Best States ------------- Heat Dissipation 42 Energy Generation 14 Energy Capacity 280 Matter Stores 300 Matter Capacity 300 Sight Range 16 Terrain Scan Density 10 Evasion (%) 57 Targeting Accuracy 6 Item Schematics ----------------- None Robot Schematics ------------------ None Fabricated ------------ Nothing Alien Tech Used ----------------- None Achievements -------------- None Challenges ------------ None Game ------ Seed ThunderMasterCore Manual? 0 Play Time 00:19:00 Cumulative 40.0 hours Start 2022.03.31 @ 12:51:01 End 2022.03.31 @ 13:10:53 Sessions 1 Manual Loads 0 Difficulty Rogue Special Mode None Game No. 32 Rogue 32 Adventurer 0 Explorer 0 Win Type - Total 1 Types 1/0/0/0/0/0/0/0/0 Lore% 48 Gallery% 48 Achievement% 46 Wizard Run 0 Options --------- ASCII 0 Keyboard 1 Movement Vi Keybinds 0 Fullscreen 2 Font 24/Proggy Map View 76x50 Tactical HUD 1 Map Filters NONE Filters NONE Steam 1 RUN: c6b4f0a2-5607-4252-bdb2-e56ac11e095b